bitfinex-derivatives/quotes_BTCF0:USTF0_20250508
["timestamp","ask_amount","ask_price","bid_price","bid_amount"]
[1746707044000,0.2316436,99565.0,99564.0,0.85117546]
[1746707044411,0.0308,99565.0,99564.0,0.85117546]
[1746707045603,0.2008402,99567.0,99566.0,0.2008416]
[1746707045908,0.2008402,99567.0,99566.0,0.2608416]
[1746707046309,0.2008402,99567.0,99566.0,0.4924416]
[1746707046608,0.03,99568.0,99567.0,0.2008396]
[1746707046803,0.03,99568.0,99567.0,0.3044396]
[1746707047010,0.2308376,99568.0,99567.0,0.3044396]
[1746707047208,0.2308376,99568.0,99567.0,0.4724396]
[1746707048000,0.2308376,99568.0,99567.0,0.4734396]
[1746707050605,0.2308376,99568.0,99567.0,0.8342396]
[1746707051915,0.03,99568.0,99567.0,0.8342396]
[1746707052213,0.03,99568.0,99567.0,0.8942396]
[1746707055618,0.00251,99572.0,99571.0,0.2008315]
[1746707055821,0.0322,99576.0,99571.0,0.1702078]
[1746707056116,0.2330214,99576.0,99575.0,0.3608]
[1746707056416,0.2330214,99576.0,99575.0,0.3908]
[1746707057105,0.2642214,99576.0,99575.0,0.5903]
[1746707057307,0.0634,99576.0,99575.0,0.7911234]
[1746707057522,0.0322,99576.0,99575.0,0.7911234]
[1746707057710,0.0342,99576.0,99575.0,0.7911234]
[1746707058113,0.0342,99576.0,99575.0,0.8242234]
[1746707058512,0.0342,99576.0,99575.0,0.8742234]
[1746707058913,0.004,99576.0,99575.0,0.8742234]
[1746707063717,0.004,99576.0,99575.0,1.07896789]
[1746707064925,0.00251,99580.0,99579.0,0.2008154]
[1746707065128,0.09728,99591.0,99584.0,0.2008053]
[1746707065129,0.2008041,99585.0,99584.0,0.2008053]
[1746707065329,0.0501998,99587.0,99586.0,0.2007992]
[1746707065330,0.2007996,99587.0,99586.0,0.2007992]
[1746707065525,0.2313996,99587.0,99586.0,0.2307992]
[1746707065725,0.2007996,99587.0,99586.0,0.2964992]
[1746707065927,0.0501968,99593.0,99587.0,0.2007992]
[1746707066127,0.0501968,99593.0,99587.0,0.2807992]
[1746707066431,0.20230401,99588.0,99587.0,0.5144992]
[1746707066631,0.00150681,99588.0,99587.0,0.5144992]
[1746707066829,0.2007904,99592.0,99591.0,0.2007892]
[1746707067029,0.2007904,99592.0,99591.0,0.6215892]
[1746707067232,0.2007871,99594.0,99593.0,0.2007851]
[1746707067538,0.2007871,99594.0,99593.0,0.3667851]
[1746707067736,0.1,99600.0,99593.0,0.166]
[1746707067934,0.1,99600.0,99599.0,0.561575]
[1746707068129,0.300773,99600.0,99599.0,0.661575]
[1746707068731,0.300773,99600.0,99599.0,0.727575]
[1746707069238,0.300773,99600.0,99599.0,0.895575]
[1746707070335,0.1,99600.0,99599.0,0.895575]
[1746707070634,0.103,99600.0,99599.0,0.895575]
[1746707070937,0.101,99600.0,99599.0,0.9113159]
[1746707079144,0.101,99600.0,99599.0,0.7433159]
[1746707080347,0.101,99600.0,99599.0,0.6733159]
[1746707080651,0.1335,99600.0,99599.0,0.6733159]
[1746707081248,0.1643,99600.0,99599.0,0.6733159]
[1746707083543,0.365073,99600.0,99599.0,0.6733159]
[1746707083744,0.1643,99600.0,99599.0,0.6403159]
[1746707084342,0.1643,99600.0,99599.0,0.6703159]
[1746707086550,0.365073,99600.0,99599.0,0.6703159]
[1746707086744,0.1643,99600.0,99599.0,0.6703159]
[1746707087345,0.365073,99600.0,99599.0,0.4365409]
[1746707087543,0.2007811,99597.0,99596.0,0.2007777]
[1746707087745,0.2007811,99597.0,99596.0,0.2607777]
[1746707087945,0.2954811,99597.0,99596.0,0.31571475]
[1746707088249,0.2954811,99597.0,99596.0,0.11493705]
[1746707088450,0.2954811,99597.0,99596.0,0.07493705]
[1746707089256,0.4634811,99597.0,99596.0,0.07493705]
[1746707089852,0.4634811,99597.0,99596.0,0.27671815]
[1746707091054,0.4634811,99597.0,99596.0,0.21671815]
[1746707095754,0.4634811,99597.0,99596.0,0.26671815]
[1746707096056,0.4634811,99597.0,99596.0,0.21671815]
[1746707096252,0.2954811,99597.0,99596.0,0.21671815]
[1746707096958,0.2954811,99597.0,99596.0,0.36988593]
[1746707098160,0.4634811,99597.0,99596.0,0.36988593]
[1746707098468,0.4634811,99597.0,99596.0,0.35494888]
[1746707099257,0.2954811,99597.0,99596.0,0.35494888]
[1746707101760,0.3054811,99597.0,99596.0,0.35494888]
[1746707102857,0.3054811,99597.0,99596.0,0.2341811]
[1746707104968,0.2954811,99597.0,99596.0,0.2341811]
[1746707106462,0.2954811,99597.0,99596.0,0.2661811]
[1746707108171,0.2954811,99597.0,99596.0,0.0654]
[1746707109068,0.2954811,99597.0,99596.0,0.0334]
[1746707109364,0.4634811,99597.0,99596.0,0.2341811]
[1746707112874,0.5034811,99597.0,99596.0,0.2341811]
[1746707113367,0.5034811,99597.0,99596.0,0.0334]
[1746707113573,0.5834811,99597.0,99596.0,0.001]
[1746707114671,0.2007851,99594.0,99593.0,0.40553149]
[1746707114870,0.2607851,99594.0,99593.0,0.40553149]
[1746707115273,0.4287851,99594.0,99593.0,0.40553149]
[1746707115475,0.4909851,99594.0,99593.0,0.40553149]
[1746707115678,0.4909851,99594.0,99593.0,0.20474449]
[1746707116172,0.4909851,99594.0,99593.0,0.20574449]
[1746707116673,0.4909851,99594.0,99593.0,0.15456801]
[1746707117462,0.4909851,99594.0,99593.0,0.15556801]
[1746707117664,0.59139311,99594.0,99593.0,0.15556801]
[1746707118772,0.60633842,99594.0,99593.0,0.15556801]
[1746707119366,0.60633842,99594.0,99574.0,0.0326]
[1746707119367,0.34555332,99594.0,99581.0,0.15356801]
[1746707119569,0.5616093,99582.0,99581.0,0.15356801]
[1746707119873,0.7816093,99582.0,99581.0,0.15356801]
[1746707120178,0.2008234,99575.0,99574.0,0.20474449]
[1746707120476,0.2008234,99575.0,99565.0,0.25556339]
[1746707120477,0.2008416,99566.0,99565.0,0.25556339]
[1746707120678,0.3408416,99566.0,99565.0,0.25556339]
[1746707121174,0.5088416,99566.0,99565.0,0.25556339]
[1746707121375,0.5728416,99566.0,99565.0,0.25556339]
[1746707121968,0.2008436,99565.0,99564.0,0.0303]
[1746707122267,0.4588436,99565.0,99564.0,0.0303]
[1746707122469,0.5205436,99565.0,99564.0,0.0303]
[1746707123270,0.5215436,99565.0,99564.0,0.0303]
[1746707123569,0.5225436,99565.0,99564.0,0.0303]
[1746707124072,0.3708436,99565.0,99564.0,0.2911456]
[1746707124272,0.2028436,99565.0,99564.0,0.3991456]
[1746707124468,0.2228436,99565.0,99564.0,0.3991456]
[1746707124866,0.2228436,99565.0,99564.0,0.1983]
[1746707125374,0.3908436,99565.0,99564.0,0.0303]
[1746707125576,0.4237436,99565.0,99564.0,0.0303]
[1746707126077,0.4237436,99565.0,99564.0,0.063]
[1746707127178,0.4237436,99565.0,99564.0,0.2638456]
[1746707128177,0.4237436,99565.0,99564.0,0.063]
[1746707128378,0.4543436,99565.0,99564.0,0.063]
[1746707128571,0.864947,99565.0,99559.0,0.00063]
[1746707128770,0.2008537,99560.0,99559.0,0.00063]
[1746707128965,0.3608537,99560.0,99559.0,0.00063]
[1746707129167,0.0502173,99553.0,99545.0,0.00100457]
[1746707129368,0.2008819,99546.0,99545.0,0.00100457]
[1746707129575,0.4075619,99546.0,99545.0,0.00100457]
[1746707130180,0.5755619,99546.0,99545.0,0.00100457]
[1746707130480,0.6067619,99546.0,99545.0,0.00100457]
[1746707131081,0.6107619,99546.0,99545.0,0.00200457]
[1746707131582,0.6137619,99546.0,99545.0,0.00200457]
[1746707136786,0.5037619,99546.0,99545.0,0.00200457]
[1746707142689,0.4070819,99546.0,99545.0,0.00200457]
[1746707142887,0.5038019,99546.0,99545.0,0.00200457]
[1746707143592,0.5363019,99546.0,99545.0,0.00200457]
[1746707148597,0.5363019,99546.0,99545.0,0.03370457]
[1746707148788,0.5363019,99546.0,99545.0,0.06590457]
[1746707148989,0.5038019,99546.0,99545.0,0.06590457]
[1746707149195,0.4726019,99546.0,99545.0,0.06590457]
[1746707150296,0.3046019,99546.0,99545.0,0.06590457]
[1746707151195,0.3046019,99546.0,99545.0,0.59470457]
[1746707152298,0.3046019,99546.0,99545.0,0.42670457]
[1746707154200,0.007,99546.0,99545.0,0.62758857]
[1746707154498,0.007,99546.0,99545.0,1.06804456]
[1746707155096,0.007,99546.0,99545.0,1.23604456]
[1746707155799,0.007,99546.0,99545.0,0.98604456]
[1746707158298,0.2008773,99549.0,99548.0,0.2008779]
[1746707158500,0.2008773,99549.0,99548.0,0.2508779]
[1746707158701,0.2008726,99553.0,99552.0,0.2510828]
[1746707158997,0.2008726,99553.0,99552.0,0.3111828]
[1746707159197,0.2008726,99553.0,99552.0,0.5104828]
[1746707160898,0.2008726,99553.0,99552.0,0.5134828]
[1746707161097,0.2008726,99553.0,99552.0,0.5164828]
[1746707167906,0.00251,99557.0,99556.0,0.2008618]
[1746707168105,0.2008567,99559.0,99558.0,0.2008577]
[1746707168292,0.2008567,99559.0,99558.0,0.2408577]
[1746707169204,0.2008567,99559.0,99558.0,0.4088577]
[1746707169596,0.2008567,99559.0,99558.0,0.4118577]
[1746707170000,0.2008567,99559.0,99558.0,0.3718577]
[1746707170705,0.2008567,99559.0,99558.0,0.3738577]
[1746707171403,0.2008567,99559.0,99558.0,0.3718577]
[1746707171604,0.2008567,99559.0,99558.0,0.3738577]
[1746707173101,0.2008567,99559.0,99558.0,0.005]
[1746707173297,0.2008567,99559.0,99558.0,0.2058577]
[1746707174106,0.2008567,99559.0,99558.0,0.3738577]
[1746707177710,0.2008526,99561.0,99560.0,0.2510627]
[1746707178111,0.2008526,99561.0,99560.0,0.4320497]
[1746707178314,0.2334526,99561.0,99560.0,0.4320497]
[1746707179414,0.2334526,99561.0,99560.0,0.44897399]
[1746707179613,0.2008526,99561.0,99560.0,0.45097399]
[1746707180213,0.2327526,99561.0,99560.0,0.45097399]
[1746707181114,0.2327526,99561.0,99560.0,0.28297399]
[1746707181321,0.2635526,99561.0,99560.0,0.28297399]
[1746707183116,0.2635526,99561.0,99560.0,0.45097399]
[1746707185109,0.2635526,99561.0,99560.0,0.28297399]
[1746707188521,0.0502094,99568.0,99567.0,0.2008376]
[1746707188820,0.2510511,99568.0,99567.0,0.2008376]
[1746707189117,0.2510511,99568.0,99567.0,0.3688376]
[1746707189314,0.2811511,99568.0,99567.0,0.3688376]
[1746707189816,0.2811511,99568.0,99567.0,0.3698376]
[1746707191118,0.2510511,99568.0,99567.0,0.3698376]
[1746707191819,0.3429511,99568.0,99567.0,0.3698376]
[1746707192215,0.0601,99568.0,99567.0,0.3698376]
[1746707192521,0.2309376,99568.0,99567.0,0.3698376]
[1746707192916,0.2309376,99568.0,99567.0,0.3998376]
[1746707193222,0.2309376,99568.0,99567.0,0.3698376]
[1746707195121,0.2309376,99568.0,99567.0,0.2018376]
[1746707198122,0.2309376,99568.0,99567.0,0.3698376]
[1746707201822,0.2309376,99568.0,99567.0,0.3898376]
[1746707204230,0.2309376,99568.0,99567.0,0.2542376]
[1746707209227,0.2309376,99568.0,99567.0,0.2854376]
[1746707212232,0.2309376,99568.0,99567.0,0.4534376]
[1746707213239,0.2008301,99572.0,99571.0,0.2008295]
[1746707213437,0.2008301,99572.0,99571.0,0.6538295]
[1746707214141,0.2338301,99572.0,99571.0,0.6538295]
[1746707215135,0.2338301,99572.0,99571.0,0.8218295]
[1746707216139,0.2338301,99572.0,99571.0,0.6538295]
[1746707220744,0.2338301,99572.0,99571.0,0.85847269]
[1746707223343,0.2338301,99572.0,99571.0,0.6538295]
[1746707225042,0.2338301,99572.0,99571.0,0.6838295]
[1746707230144,0.2338301,99572.0,99571.0,0.8518295]
[1746707231148,0.2338301,99572.0,99571.0,0.6838295]
[1746707232745,0.2338301,99572.0,99571.0,0.6858295]
[1746707233047,0.2663301,99572.0,99571.0,0.6858295]
[1746707233348,0.2663301,99572.0,99571.0,0.3250295]
[1746707233548,0.2663301,99572.0,99571.0,0.6858295]
[1746707234136,0.2663301,99572.0,99571.0,0.6838295]
[1746707234340,0.2663301,99572.0,99571.0,0.6878295]
[1746707238046,0.2663301,99572.0,99571.0,0.6564295]
[1746707239440,0.2663301,99572.0,99571.0,0.2956295]
[1746707239648,0.2663301,99572.0,99571.0,0.6564295]
[1746707241650,0.2663301,99572.0,99571.0,0.81012832]
[1746707243350,0.2663301,99572.0,99571.0,0.86134702]
[1746707246453,0.2663301,99572.0,99571.0,0.56971752]
[1746707246746,0.72756211,99572.0,99571.0,0.20891752]
[1746707246953,0.97756211,99572.0,99571.0,0.1180414]
[1746707247145,0.2008315,99571.0,99570.0,0.1180414]
[1746707247346,0.30126351,99571.0,99570.0,0.1180414]
[1746707247548,0.61176351,99571.0,99570.0,0.1180414]
[1746707248255,0.77976351,99571.0,99570.0,0.1200414]
[1746707248454,0.77976351,99571.0,99570.0,0.1220414]
[1746707248754,0.52976351,99571.0,99570.0,0.1220414]
[1746707250355,0.52976351,99571.0,99570.0,0.004]
[1746707252952,0.2008557,99559.0,99558.0,0.15360376]
[1746707253259,0.2008658,99554.0,99553.0,0.15360376]
[1746707253560,0.2008658,99554.0,99553.0,0.18610376]
[1746707254157,0.3688658,99554.0,99553.0,0.18610376]
[1746707254352,0.4323658,99554.0,99553.0,0.18610376]
[1746707254968,0.4363658,99554.0,99553.0,0.18610376]
[1746707255755,0.4363658,99554.0,99553.0,0.0325]
[1746707255955,0.4048658,99554.0,99553.0,0.0631]
[1746707256155,0.2368658,99554.0,99553.0,0.0631]
[1746707258261,0.4048658,99554.0,99553.0,0.0631]
[1746707260366,0.4048658,99554.0,99553.0,0.0325]
[1746707261961,0.4948658,99554.0,99553.0,0.0325]
[1746707264374,0.4628658,99554.0,99553.0,0.2333678]
[1746707264572,0.3728658,99554.0,99553.0,0.2333678]
[1746707264964,0.3728658,99554.0,99553.0,0.063]
[1746707265164,0.2048658,99554.0,99553.0,0.063]
[1746707266073,0.2148658,99554.0,99553.0,0.063]
[1746707268380,0.3095658,99554.0,99553.0,0.063]
[1746707270173,0.4775658,99554.0,99553.0,0.063]
[1746707272480,0.4466658,99554.0,99553.0,0.063]
[1746707272873,0.4136658,99554.0,99553.0,0.063]
[1746707278184,0.2148658,99554.0,99553.0,0.063]
[1746707279180,0.2148658,99554.0,99553.0,0.0953]
[1746707282583,0.2128658,99554.0,99553.0,0.0953]
[1746707282779,0.2108658,99554.0,99553.0,0.0953]
[1746707282985,0.2008658,99554.0,99553.0,0.0953]
[1746707283987,0.2108658,99554.0,99553.0,0.0953]
[1746707284183,0.2108658,99554.0,99553.0,0.0963]
[1746707284781,0.2108658,99554.0,99553.0,0.0658]
[1746707287383,0.2108658,99554.0,99553.0,0.0335]
[1746707288586,0.2108658,99554.0,99553.0,0.001]
[1746707289381,0.2108658,99554.0,99553.0,0.2018678]
[1746707289583,0.2008658,99554.0,99553.0,0.2218678]
[1746707289876,0.2008658,99554.0,99553.0,0.2018678]
[1746707290085,0.2008658,99554.0,99553.0,0.3698678]
[1746707290690,0.2008658,99554.0,99553.0,0.3898678]
[1746707290992,0.2008658,99554.0,99553.0,0.3698678]
[1746707291679,0.2008658,99554.0,99553.0,0.3898678]
[1746707292299,0.2008658,99554.0,99553.0,0.3888678]
[1746707292991,0.2008658,99554.0,99553.0,0.3908678]
[1746707293194,0.2008658,99554.0,99553.0,0.3918678]
[1746707298996,0.2008658,99554.0,99553.0,0.3718678]
[1746707299295,0.2608658,99554.0,99553.0,0.171]
[1746707299487,0.3108658,99554.0,99553.0,0.171]
[1746707300292,0.4788658,99554.0,99553.0,0.003]
[1746707301094,0.4798658,99554.0,99553.0,0.001]
[1746707301499,0.8406658,99554.0,99553.0,0.001]
[1746707301801,0.2008819,99546.0,99545.0,0.00100457]
[1746707302001,0.2808819,99546.0,99545.0,0.00100457]
[1746707302200,0.4488819,99546.0,99545.0,0.00100457]
[1746707302897,0.4488819,99546.0,99545.0,0.00200457]
[1746707303101,0.4488819,99546.0,99545.0,0.00300457]
[1746707314212,0.3688819,99546.0,99545.0,0.00300457]
[1746707316114,0.4693379,99546.0,99545.0,0.00300457]
[1746707320617,0.3688819,99546.0,99545.0,0.00300457]
[1746707322413,0.4693379,99546.0,99545.0,0.00300457]
[1746707323613,0.3688819,99546.0,99545.0,0.00300457]
[1746707325123,0.5788819,99546.0,99545.0,0.00300457]
[1746707325521,0.6793379,99546.0,99545.0,0.00300457]
[1746707326516,0.5788819,99546.0,99545.0,0.00300457]
[1746707328624,1.2101379,99546.0,99545.0,7e-08]
[1746707329616,1.7101379,99546.0,99545.0,7e-08]
[1746707339032,1.7181379,99546.0,99545.0,7e-08]
[1746707339434,1.7261379,99546.0,99545.0,7e-08]
[1746707340533,1.6256819,99546.0,99545.0,7e-08]
[1746707341034,1.6176819,99546.0,99545.0,7e-08]
[1746707341235,1.6266819,99546.0,99545.0,7e-08]
[1746707345538,1.7271379,99546.0,99545.0,7e-08]
[1746707355048,1.7271379,99546.0,99515.0,0.00100487]
[1746707355049,0.2009425,99516.0,99515.0,0.00100487]
[1746707355238,0.7317425,99516.0,99515.0,0.00100487]
[1746707355545,0.7317425,99516.0,99515.0,0.25100487]
[1746707355746,0.5617425,99516.0,99515.0,0.20475917]
[1746707355943,0.9517425,99516.0,99515.0,0.20475917]
[1746707356136,1.1197425,99516.0,99515.0,0.20475917]
[1746707356643,1.1197425,99516.0,99515.0,0.001]
[1746707356644,1.1237425,99516.0,99515.0,0.001]
[1746707359848,1.13130836,99516.0,99515.0,0.001]
[1746707360050,0.85130836,99516.0,99515.0,0.001]
[1746707366250,0.68330836,99516.0,99515.0,0.001]
[1746707367150,0.85130836,99516.0,99515.0,0.001]
[1746707368247,0.68330836,99516.0,99515.0,0.001]
[1746707369353,0.97330836,99516.0,99515.0,0.001]
[1746707370146,1.14130836,99516.0,99515.0,0.001]
[1746707371352,0.97330836,99516.0,99515.0,0.001]
[1746707372154,1.14130836,99516.0,99515.0,0.001]
[1746707373253,0.97330836,99516.0,99515.0,0.001]
[1746707378150,1.14130836,99516.0,99515.0,0.001]
[1746707378648,1.13830836,99516.0,99515.0,0.001]
[1746707378954,1.14030836,99516.0,99515.0,0.001]
[1746707379256,0.2009708,99502.0,99501.0,0.0015075]
[1746707379456,0.3409708,99502.0,99501.0,0.0015075]
[1746707380450,0.3419708,99502.0,99501.0,0.0035075]
[1746707382355,0.38721164,99502.0,99501.0,0.0035075]
[1746707383250,0.55521164,99502.0,99501.0,0.0035075]
[1746707383757,0.55721164,99502.0,99501.0,0.0025075]
[1746707384660,0.80721164,99502.0,99501.0,0.0025075]
[1746707384958,0.200991,99492.0,99491.0,0.15354718]
[1746707385153,0.440991,99492.0,99491.0,0.15354718]
[1746707385956,0.441991,99492.0,99491.0,0.15454718]
[1746707386162,0.609991,99492.0,99491.0,0.15454718]
[1746707386859,0.609991,99492.0,99491.0,0.001]
[1746707388261,0.441991,99492.0,99491.0,0.001]
[1746707392361,0.311991,99492.0,99491.0,0.001]
[1746707393158,0.311991,99492.0,99491.0,0.169]
[1746707395870,0.201991,99492.0,99491.0,0.169]
[1746707396061,0.201991,99492.0,99491.0,0.189]
[1746707396266,0.201991,99492.0,99491.0,0.169]
[1746707396664,0.321991,99492.0,99491.0,0.169]
[1746707398771,0.322991,99492.0,99491.0,0.169]
[1746707399769,0.323991,99492.0,99491.0,0.169]
[1746707400461,0.003,99492.0,99491.0,0.600505]
[1746707400666,0.0502416,99505.0,99493.0,0.2009849]
[1746707400868,0.2009898,99494.0,99493.0,0.2512318]
[1746707401063,0.2009898,99494.0,99493.0,0.6120318]
[1746707401275,0.2009898,99494.0,99493.0,0.8805398]
[1746707401978,0.2319898,99494.0,99493.0,0.8805398]
[1746707402275,0.2319898,99494.0,99493.0,0.8815398]
[1746707402678,0.2319898,99494.0,99493.0,0.8805398]
[1746707402880,0.2329898,99494.0,99493.0,0.8825398]
[1746707403085,0.2329898,99494.0,99493.0,0.8322929]
[1746707403286,0.2319898,99494.0,99493.0,0.8302929]
[1746707403485,0.2329898,99494.0,99493.0,0.8322929]
[1746707404191,0.2319898,99494.0,99493.0,0.8322929]
[1746707406087,0.2319898,99494.0,99493.0,0.84800324]
[1746707406986,0.2319898,99494.0,99493.0,0.86371555]
[1746707407690,0.2319898,99494.0,99493.0,0.56222265]
[1746707408093,0.2319898,99494.0,99493.0,0.76321165]
[1746707409885,0.2319898,99494.0,99493.0,0.56222265]
[1746707410188,0.2019898,99494.0,99493.0,0.76321165]
[1746707411488,0.2019898,99494.0,99493.0,0.55593661]
[1746707411790,0.2019898,99494.0,99493.0,0.35494851]
[1746707411993,0.2119898,99494.0,99493.0,0.55593751]
[1746707412188,0.2119898,99494.0,99493.0,0.38793751]
[1746707412987,0.2119898,99494.0,99493.0,0.74873751]
[1746707413185,0.2019869,99494.0,99493.0,1.11924551]
[1746707413393,0.2019869,99494.0,99493.0,0.87924551]
[1746707413684,0.2019869,99494.0,99493.0,0.85924482]
[1746707414096,0.2019869,99494.0,99493.0,0.70571986]
[1746707414293,0.2019869,99494.0,99493.0,0.87371986]
[1746707414791,0.2019869,99494.0,99493.0,0.86371986]
[1746707416188,0.2019869,99494.0,99493.0,0.66273086]
[1746707416394,0.24722774,99494.0,99493.0,0.35494782]
[1746707417194,0.41522774,99494.0,99493.0,0.18694782]
[1746707419198,0.41522774,99494.0,99493.0,0.03342286]
[1746707419199,0.24722774,99494.0,99493.0,0.03342286]
[1746707420991,0.24722774,99494.0,99493.0,0.0334253]
[1746707421295,0.41522774,99494.0,99493.0,0.0334253]
[1746707421487,0.3699869,99494.0,99493.0,0.0334253]
[1746707422200,0.2019869,99494.0,99493.0,0.0334253]
[1746707422895,0.2019869,99494.0,99493.0,0.03342422]
[1746707423301,0.2019869,99494.0,99493.0,0.20142422]
[1746707424399,0.2019869,99494.0,99493.0,0.03342422]
[1746707426201,0.2019869,99494.0,99493.0,0.20142422]
[1746707427403,0.2019869,99494.0,99493.0,0.03342422]
[1746707430209,0.2019869,99494.0,99493.0,0.20142422]
[1746707430907,0.2019869,99494.0,99493.0,0.20142499]
[1746707431207,0.2019869,99494.0,99493.0,0.01771231]
[1746707434314,0.2019869,99494.0,99493.0,0.03342524]
[1746707435313,0.2019869,99494.0,99493.0,0.03342493]
[1746707436201,0.2019869,99494.0,99493.0,0.20142493]
[1746707437013,0.2019869,99494.0,99493.0,0.19893093]
[1746707438114,0.2019869,99494.0,99493.0,0.03093093]
[1746707439921,0.001,99494.0,99493.0,0.03093093]
[1746707440111,0.00251,99498.0,99497.0,0.2009809]
[1746707440423,0.2009678,99504.0,99503.0,0.2009688]
[1746707440716,0.2009678,99504.0,99503.0,0.21668142]
[1746707440911,0.2009678,99504.0,99503.0,0.21667872]
[1746707441106,0.2009678,99504.0,99503.0,0.3689688]
[1746707441419,0.200964,99506.0,99505.0,0.2512018]
[1746707441617,0.2009585,99509.0,99508.0,0.2511939]
[1746707441916,0.2009436,99517.0,99516.0,0.2009385]
[1746707442112,0.2009436,99517.0,99514.0,0.0502362]
[1746707442318,0.2009506,99513.0,99512.0,0.2511837]
[1746707442513,0.2009506,99513.0,99512.0,0.26689226]
[1746707442713,0.2009506,99513.0,99512.0,0.36738026]
[1746707442913,0.2009506,99513.0,99512.0,0.31714286]
[1746707443109,0.2009506,99513.0,99512.0,0.31714302]
[1746707443315,0.2009506,99513.0,99512.0,0.48514302]
[1746707443618,0.2009506,99513.0,99512.0,0.48514295]
[1746707443822,0.2009385,99518.0,99517.0,0.2009385]
[1746707444017,0.2009385,99518.0,99517.0,0.23664715]
[1746707444208,0.2009385,99518.0,99517.0,0.40464715]
[1746707444417,0.2009385,99518.0,99517.0,0.18370865]
[1746707444921,0.2009385,99518.0,99517.0,0.18370857]
[1746707445315,0.2029385,99518.0,99517.0,0.18370857]
[1746707445515,0.2039385,99518.0,99517.0,0.18370857]
[1746707445715,0.2039385,99518.0,99517.0,0.18370853]
[1746707446210,0.2039385,99518.0,99517.0,0.1837085]
[1746707446423,0.2039385,99518.0,99517.0,0.38464884]
[1746707446610,0.2039385,99518.0,99517.0,0.38464856]
[1746707448218,0.2039385,99518.0,99517.0,0.3846483]
[1746707448616,0.2039385,99518.0,99517.0,0.3689405]
[1746707448820,0.2511871,99516.0,99511.0,0.34592098]
[1746707449127,0.2511871,99516.0,99515.0,0.050236]
[1746707449321,0.2009486,99514.0,99513.0,0.0502367]
[1746707449521,0.2009486,99514.0,99513.0,0.2511853]
[1746707449820,0.2009486,99514.0,99513.0,0.2611853]
[1746707450123,0.2009486,99514.0,99513.0,0.4291853]
[1746707451515,0.2019486,99514.0,99513.0,0.4291853]
[1746707451927,0.2019486,99514.0,99513.0,0.4191853]
[1746707453831,0.2019486,99514.0,99513.0,0.43489329]
[1746707458834,0.24718944,99514.0,99513.0,0.43489329]
[1746707459047,0.24718944,99514.0,99513.0,0.18370799]
[1746707459246,0.41518944,99514.0,99513.0,0.01570799]
[1746707461244,0.41518944,99514.0,99513.0,0.03141721]
[1746707461842,0.41518944,99514.0,99513.0,0.03141735]
[1746707462341,0.24718944,99514.0,99513.0,0.03141635]
[1746707464448,0.24718944,99514.0,99513.0,0.0314177]
[1746707465142,0.41518944,99514.0,99513.0,0.01170799]
[1746707465345,0.2009869,99494.0,99493.0,0.13565639]
[1746707466040,0.20236858,99494.0,99493.0,0.13565639]
[1746707466241,0.20236858,99494.0,99493.0,0.16785639]
[1746707466544,0.20236858,99494.0,99493.0,0.0322]
[1746707466744,0.20636858,99494.0,99493.0,0.0332]
[1746707467042,0.20936858,99494.0,99493.0,0.0342]
[1746707467247,0.37736858,99494.0,99493.0,0.0342]
[1746707468257,0.20936858,99494.0,99493.0,0.0342]
[1746707470148,0.37736858,99494.0,99493.0,0.0342]
[1746707470450,0.40956858,99494.0,99493.0,0.0342]
[1746707475449,0.17638168,99494.0,99493.0,0.245189]
[1746707475644,0.17638168,99494.0,99493.0,0.366089]
[1746707475844,0.17638168,99494.0,99493.0,0.356089]
[1746707476249,0.00838168,99494.0,99493.0,0.524089]
[1746707476650,0.20936858,99494.0,99493.0,0.524089]
[1746707477358,0.20936858,99494.0,99493.0,0.53979896]
[1746707478358,0.20936858,99494.0,99493.0,0.2637]
[1746707478558,0.20936858,99494.0,99493.0,0.27941023]
[1746707478756,0.20936858,99494.0,99493.0,0.27923485]
[1746707479262,0.20936858,99494.0,99493.0,0.31222385]
[1746707479449,0.24146858,99494.0,99493.0,0.296689]
[1746707479651,0.11327786,99494.0,99493.0,0.11123484]
[1746707479962,0.11327786,99494.0,99493.0,0.04951463]
[1746707480155,0.28127786,99494.0,99493.0,0.04951468]
[1746707480649,0.28127786,99494.0,99493.0,0.0342]
[1746707480852,0.28127786,99494.0,99493.0,0.04950711]
[1746707481053,0.28127786,99494.0,99493.0,0.08010566]
[1746707481556,0.28127786,99494.0,99493.0,0.0648]
[1746707481756,0.28127786,99494.0,99493.0,0.08002858]
[1746707482159,0.11327786,99494.0,99493.0,0.0648]
[1746707484564,0.11327786,99494.0,99493.0,0.0638]
[1746707484865,0.11427786,99494.0,99493.0,0.0678]
[1746707485163,0.11327786,99494.0,99493.0,0.0638]
[1746707485363,0.11427786,99494.0,99493.0,0.0668]
[1746707486264,0.28327786,99494.0,99493.0,0.0698]
[1746707487266,0.28227786,99494.0,99493.0,0.0668]
[1746707487466,0.28327786,99494.0,99493.0,0.0688]
[1746707487866,0.28227786,99494.0,99493.0,0.0648]
[1746707488168,0.28327786,99494.0,99493.0,0.0688]
[1746707488369,0.25117786,99494.0,99493.0,0.0688]
[1746707488964,0.25017786,99494.0,99493.0,0.0668]
[1746707489161,0.08317786,99494.0,99493.0,0.0688]
[1746707489465,0.08317786,99494.0,99493.0,0.385789]
[1746707489466,0.08217786,99494.0,99493.0,0.385789]
[1746707489671,0.08217786,99494.0,99493.0,0.318789]
[1746707490057,0.08217786,99494.0,99493.0,0.486789]
[1746707490764,0.08217786,99494.0,99493.0,0.487789]
[1746707491264,0.08217786,99494.0,99493.0,0.486789]
[1746707491572,0.08317786,99494.0,99493.0,0.491789]
[1746707495174,0.08317786,99494.0,99493.0,0.323789]
[1746707495773,0.2029869,99494.0,99493.0,0.273789]
[1746707495969,0.2029869,99494.0,99493.0,0.0728]
[1746707496175,0.2029869,99494.0,99493.0,0.273789]
[1746707497374,0.2029869,99494.0,99493.0,0.0728]
[1746707498676,0.2029869,99494.0,99493.0,0.273789]
[1746707502784,0.2029869,99494.0,99493.0,0.47869546]
[1746707505580,1.0246233,99541.0,99519.0,0.2009364]
[1746707505775,0.0502241,99539.0,99536.0,0.2009021]
[1746707505976,0.0502236,99540.0,99536.0,0.5917021]
[1746707506182,0.200899,99538.0,99536.0,0.7597021]
[1746707506385,0.9744,99541.0,99536.0,0.7297021]
[1746707506685,1.0246235,99541.0,99536.0,0.74097637]
[1746707506982,0.46805378,99537.0,99536.0,0.77357637]
[1746707507185,0.2009001,99537.0,99536.0,0.63637637]
[1746707507481,0.2009001,99537.0,99536.0,0.63937637]
[1746707507691,0.2009001,99537.0,99536.0,0.64137637]
[1746707508185,0.2009001,99537.0,99536.0,0.80937637]
[1746707509281,0.2009001,99537.0,99536.0,0.64137637]
[1746707511985,0.0322,99540.0,99537.0,0.0502246]
[1746707512287,0.2511145,99545.0,99544.0,0.200884]